Cogmind - Beta 16 @@@ ROGUE MODE // 2025.12.17 @ 19:13:02 Player: souux Result: Destroyed by as-53271 with Assembled P-torch Performance ------------- Evolutions (4) 2000 Regions Visited (14) 2800 Robots Destroyed (211) 1055 Value Destroyed (6876) 6876 Prototype IDs (55) 1100 Alien Tech Used (0) 0 Bonus (2559) 2559 TOTAL SCORE: 16390 Bonus ------- Aligned with FarCom 300 Met Imprinter 300 Destroyed Z-Imprinter 1000 Triggered Deep Caves Wall 500 Exposed GOLEM Chamber 500 Friendly Fire -41 Cogmind --------- Core Integrity 0/850 Matter 17/300 Energy 18/100 System Corruption 3% Temperature Cool (20) Movement Core (1500) Ox29 Location -6/Deep Caves Parts ------- > --- POWER (1) -------- (None) > --- PROPULSION (6) --- Armored Treads > --- UTILITY (6) ------ Experimental Heat Sink Huge Storage Unit Advanced Targeting Computer Experimental Targeting Computer > --- WEAPON (2) ------- Phase Cannon > --- INVENTORY (25) --- Zionite Light DM Reactor Experimental Heat Sink Experimental Heat Sink High-capacity Matter Pod (200) Experimental Sensor Array Advanced Targeting Computer Transmission Jammer Latent Energy Streamer Cooled Plasma Cannon Ion Burst Cannon Plasma Cutter Katana CR-A16's Pointy Stick Peak State ------------ > --- POWER ------------ Improved Deuterium Engine > --- PROPULSION ------- Armored Treads Improved Medium Treads Armored Wheel Armored Wheel Armored Huge Wheel > --- UTILITY ---------- Experimental Heat Sink Huge Storage Unit Advanced Targeting Computer Advanced Targeting Computer Experimental Targeting Computer Zionite Light Carapace > --- WEAPON ----------- Zionite Phaser-S Zionite Phaser-S > --- INVENTORY -------- Cold Fusion Reactor Zionite Light DM Reactor Armored Treads Armored Treads Experimental Heat Sink Experimental Heat Sink High-capacity Matter Pod Experimental Sensor Array Advanced Targeting Computer Advanced Targeting Computer Transmission Jammer Improved Heavy Armor Plating Improved Spread Laser Improved Spread Laser Latent Energy Streamer Phase Cannon Phase Cannon Cooled Plasma Cannon Ion Burst Cannon Ion Burst Cannon Missile Launcher Plasma Cutter Katana CR-A16's Pointy Stick [Rating: 76] Favorites ----------- Power Improved Ion Engine Engine Improved Ion Engine Reactor Cold Fusion Reactor Propulsion Armored Wheel Treads Light Treads Leg Aluminum Leg Wheel Armored Wheel Utility Advanced Targeting Computer Device Cooling System Storage Huge Storage Unit Processor Advanced Targeting Computer Hackware Hacking Suite Protection Hardened Medium Armor Plating Weapon Advanced Beam Rifle Energy Gun Advanced Beam Rifle Energy Cannon Beam Cannon Ballistic Gun Light Assault Rifle Launcher Rocket Launcher Impact Weapon Maul Slashing Weapon Katana Build | -11 -10 -10 -9 -9 -9 -8 -8 -8 -7 -6 -6 -6 -6 -6 ------- Run | Yrd Mat Min Mat Min Exi Min Mat Sto Fac Fac Low Low Zio Dee Slots Evolved 8 | . . . 2 . . . 2 . 2 2 . . . . Power . | . . . . . . . . . . . . . . . Propulsion 4 | . . . 1 . . . 1 . . 2 . . . . Utility 4 | . . . 1 . . . 1 . 2 . . . . . Weapon . | . . . . . . . . . . . . . . . Parts Attached 177 | 8 10 12 38 . . 4 20 17 16 26 1 . 2 23 Power 15 | 1 1 2 2 . . 1 1 2 1 2 . . . 2 Engine 13 | 1 1 2 2 . . 1 1 1 1 2 . . . 1 Core . | . . . . . . . . . . . . . . . Reactor 2 | . . . . . . . . 1 . . . . . 1 Propulsion 57 | 3 4 4 14 . . 1 7 6 1 10 . . . 7 Treads 35 | . . 3 10 . . 1 5 6 . 4 . . . 6 Leg 1 | . 1 . . . . . . . . . . . . . Wheel 21 | 3 3 1 4 . . . 2 . 1 6 . . . 1 Hover . | . . . . . . . . . . . . . . . Flight . | . . . . . . . . . . . . . . . Utility 60 | 2 2 4 9 . . 1 6 4 11 9 1 . 2 9 Device 23 | 1 . 3 4 . . . 2 2 4 1 . . 2 4 Storage 4 | 1 1 . 1 . . . . . . 1 . . . . Processor 9 | . . . . . . . 1 . 3 4 1 . . . Hackware 2 | . . . . . . . 1 . . 1 . . . . Protection 22 | . 1 1 4 . . 1 2 2 4 2 . . . 5 Artifact . | . . . . . . . . . . . . . . . Weapon 45 | 2 3 2 13 . . 1 6 5 3 5 . . . 5 Energy Gun 22 | . . . 4 . . . 4 4 3 3 . . . 4 Energy Cannon 12 | . 2 . 5 . . 1 . 1 . 2 . . . 1 Ballistic Gun 5 | 2 . 1 2 . . . . . . . . . . . Ballistic Cannon . | . . . . . . . . . . . . . . . Launcher 3 | . . 1 1 . . . 1 . . . . . . . Special Weapon . | . . . . . . . . . . . . . . . Impact Weapon 2 | . 1 . 1 . . . . . . . . . . . Slashing Weapon 1 | . . . . . . . 1 . . . . . . . Piercing Weapon . | . . . . . . . . . . . . . . . Special Melee Weapon . | . . . . . . . . . . . . . . . Unidentified Prototypes 23 | . . 1 3 . . . 2 4 1 3 . . 2 7 Parts Lost 26 | . . 1 . . . 1 . . . 3 . . . 21 Power 2 | . . . . . . . . . . . . . . 2 Propulsion 10 | . . . . . . . . . . . . . . 10 Utility 7 | . . . . . . 1 . . . 2 . . . 4 Weapon 7 | . . 1 . . . . . . . 1 . . . 5 Highest Loss Streak 10 | . . 1 . . . 1 . . . 1 . . . 10 To Critical Strikes . | . . . . . . . . . . . . . . . Average Backups 21 | 4 13 14 23 24 25 22 23 24 24 23 24 24 23 21 Power 1 | . 1 . 1 1 1 . 2 1 1 1 1 1 1 1 Propulsion 6 | 3 6 5 9 9 8 7 6 8 8 6 4 4 4 2 Utility 7 | . 5 7 6 7 7 6 8 8 8 8 9 9 8 7 Weapon 5 | . 1 1 6 6 7 7 5 4 4 5 9 9 9 8 Tool/Special . | . . . . . . . . . . . . . . . Unused Backups 38 | . 2 1 6 . . . 10 3 3 4 . 1 . 8 Power 4 | . . . . . . . 3 . 1 . . . . . Propulsion 2 | . 1 . 1 . . . . . . . . . . . Utility 17 | . . 1 2 . . . 2 2 2 3 . 1 . 4 Weapon 14 | . 1 . 3 . . . 5 1 . 1 . . . 3 Tool/Special 1 | . . . . . . . . . . . . . . 1 Average Slot Usage (%) 96 | . 100 99 99 100 100 99 98 99 92 92 93 93 93 86 Engine 9 | . 14 14 10 11 11 11 8 9 7 6 6 6 6 4 Treads 11 | . . 26 4 21 . 1 6 21 1 12 13 13 13 16 Wheel 20 | . 25 1 27 11 33 31 29 14 22 20 20 20 20 14 Device 7 | . 13 6 12 11 11 7 8 9 6 2 6 . . 1 Storage 9 | . 14 14 11 11 11 11 9 9 7 6 6 6 6 6 Processor 9 | . . . . . . . 6 9 15 23 26 33 26 20 Hackware 2 | . . . . . . . 5 9 7 1 . . . . Protection 5 | . . 7 9 11 11 14 5 . 6 4 . . 5 5 Energy Gun 8 | . . . 2 . . . 14 16 14 12 13 13 13 8 Energy Cannon 6 | . 19 19 13 6 . 6 1 . . . . . . 1 Ballistic Gun 1 | . 6 2 2 . . . . . . . . . . . Launcher 2 | . . 5 . 11 11 7 1 . . . . . . 2 Impact Weapon 1 | . 1 . 2 4 11 7 . . . . . . . . Peak Build Rating 76 | 7 8 17 28 27 28 28 34 39 51 66 70 67 75 76 Average Rating 34 | 5 7 9 19 23 27 21 30 34 48 56 69 66 65 66 On Entrance 33 | . 7 8 11 21 27 28 16 32 39 49 66 67 67 65 Avg Prop Armor Cover (%) 12 | . 9 . 8 . . . 15 18 7 12 15 16 12 9 Naked Turns . | . . . . . . . . . . . . . . . Heaviest Build 123 | 11 32 36 102 102 100 103 105 98 108 109 101 99 107 123 Greatest Support 120 | 26 20 40 60 60 34 34 80 88 52 52 52 52 52 120 Greatest Overweight (x) 7 | . 2 1 6 2 2 3 7 7 4 2 1 1 2 4 Average Overweight (x) 1 | . . . 1 1 2 2 2 2 1 1 1 1 1 1 Largest Inventory Capacity 25 | 8 15 15 25 25 25 25 25 25 25 25 25 25 25 25 Average Capacity 22 | 7 14 15 24 25 25 25 25 25 25 25 25 25 25 25 Most Carried 25 | 8 15 15 25 25 25 25 25 25 25 25 25 25 25 25 Average Carried 22 | 5 13 14 23 24 24 22 24 24 24 24 25 24 24 22 Final Capacity 25 | 8 15 15 25 25 25 25 25 25 25 25 25 25 25 25 Final Carried 25 | 8 15 15 24 25 25 22 25 25 25 25 25 25 25 13 Class Distribution -------------------- 77% | Mutant 11% | Scientist-Mutant 10% | Scavenger-Mutant Dominant Class ---------------- Mutant | -10/Materials Mutant | -10/Mines Mutant | -9/Materials Scavenger-Mutant | -9/Mines Mutant | -9/Exiles Mutant | -8/Mines Mutant | -8/Materials Mutant | -8/Storage Mutant | -7/Factory Scientist-Mutant | -6/Factory Mutant | -6/Lower Caves Mutant | -6/Lower Caves Mutant | -6/Zion Scientist-Mutant | -6/Deep Caves Resources | -11 -10 -10 -9 -9 -9 -8 -8 -8 -7 -6 -6 -6 -6 -6 ----------- Run | Yrd Mat Min Mat Min Exi Min Mat Sto Fac Fac Low Low Zio Dee Matter Collected 5096 | 332 323 281 1200 139 . 118 806 671 335 460 20 63 47 301 Remotely . | . . . . . . . . . . . . . . . Salvage Created 8889 | 189 352 105 1751 82 . 189 1138 1363 1064 1573 . 242 . 841 Parts 393 | 12 20 5 97 4 . 16 66 57 30 53 . 5 . 28 Haulers Intercepted 17 | . 1 . 5 . . . 1 5 2 3 . . . . Recyclers Shooed 6 | 1 1 . . . . . 2 2 . . . . . . Parts Field Recycled . | . . . . . . . . . . . . . . . Retrieved Matter . | . . . . . . . . . . . . . . . Parts Self-Destructed 4 | . . . . . . . . . . . . 4 . . Prevented . | . . . . . . . . . . . . . . . Parts Restored . | . . . . . . . . . . . . . . . Kills | -11 -10 -10 -9 -9 -9 -8 -8 -8 -7 -6 -6 -6 -6 -6 ------- Run | Yrd Mat Min Mat Min Exi Min Mat Sto Fac Fac Low Low Zio Dee Combat Hostiles Destroyed 197 | . 8 3 26 3 . 10 23 16 21 22 . 2 . 63 Guns 89 | . 1 . 8 . . . 10 15 19 21 . 2 . 13 Cannons 30 | . 7 3 14 . . 2 1 . . . . . . 3 AOE 73 | . . . 2 3 . 8 11 . 2 1 . . . 46 Classes Destroyed 20 | 2 5 2 3 . . 1 . 1 1 1 . 1 . 3 Worker 6 | . 1 . 2 . . 1 2 . . . . . . . Builder 2 | . . . 1 . . . . . . 1 . . . . Tunneler 5 | 4 . . . . . . 1 . . . . . . . Hauler 17 | . 1 . 5 . . . 1 5 2 3 . . . . Recycler 14 | 1 1 . 3 . . . 4 3 1 1 . . . . Mechanic 1 | . . . 1 . . . . . . . . . . . Operator 7 | . . . 2 . . . 2 . . 3 . . . . Watcher 13 | . 2 . 4 . . . 1 2 1 3 . . . . Swarmer 30 | . 6 . 3 . . 4 14 . 2 1 . . . . Grunt 54 | . 2 . 14 3 . 5 4 7 11 6 . 2 . . Brawler 2 | . . . . . . . . . . 2 . . . . Duelist 1 | . . . . . . 1 . . . . . . . . Sentry 32 | . . 2 9 . . . 5 8 5 3 . . . . Demolisher 1 | . . 1 . . . . . . . . . . . . Hunter 5 | . . . . . . . . 1 . 4 . . . . Programmer 9 | . . . . . . . . . 3 6 . . . . Z-Light 10 | . . . . . . . . . . . . . . 10 Samaritan 5 | . . . . . . . . . . . . 5 . . Assembled 49 | . . . . . . . . . . . . . . 49 Golem 3 | . . . . . . . . . . . . . . 3 Best Kill Streak 46 | 4 3 1 8 3 . 6 7 6 6 4 . 2 . 46 Combat Bots Only 46 | . 3 1 6 3 . 6 7 6 5 3 . 2 . 46 Max Kills in Single Turn 5 | 1 1 1 2 2 . 4 4 1 2 2 . 1 . 5 Gunslinging 1 | . . . 1 . . . . . . 1 . . . . Exploded 5 | . . . 2 2 . 4 4 . 1 1 . . . 5 Melee . | . . . . . . . . . . . . . . . Uniques/NPCs Destroyed 1 | . . . . . . . . . . . . . . 1 Z-Imprinter (-6/Deep Caves) Combat | -11 -10 -10 -9 -9 -9 -8 -8 -8 -7 -6 -6 -6 -6 -6 -------- Run | Yrd Mat Min Mat Min Exi Min Mat Sto Fac Fac Low Low Zio Dee Hostile Shots Fired 858 | . 35 37 119 11 . 44 39 83 107 139 . 5 . 239 Missed 249 | . 12 8 34 3 . 10 7 23 33 42 . 1 . 76 Hits 609 | . 23 29 85 8 . 34 32 60 74 97 . 4 . 163 Melee 16 | . . . . . . 3 . . . 4 . . . 9 Projectile 593 | . 23 29 85 8 . 31 32 60 74 93 . 4 . 154 AOE 4 | . . 4 . . . . . . . . . . . . Critical Strikes 18 | . . . 1 . . 1 3 2 3 6 . . . 2 Part Disruptions 5 | . . . . . . . . . . . . . . 5 Damage Taken 11246 | . 194 533 1161 113 . 694 431 885 757 1509 . 75 . 4894 Core 1525 | . 49 74 240 42 . 52 42 120 48 120 . 38 . 700 Absorbed by Shields 12 | . . . 12 . . . . . . . . . . . Regen/Repaired (Parts) 406 | . 17 . 169 . . . 66 77 77 . . . . . Core Remaining (%) 65 | 100 . 50 . . . 16 . 70 93 . . . . . Volleys Fired 555 | 26 36 14 96 2 . 18 57 82 58 69 . 14 . 83 Largest 2 | 2 2 2 2 1 . 2 2 2 2 2 . 2 . 2 Hottest 170 | 40 120 120 136 33 . 136 136 122 155 160 . 155 . 170 Shots Fired 1039 | 52 72 22 183 2 . 25 109 165 114 135 . 28 . 132 Gun 764 | 52 29 . 59 . . . 92 165 112 133 . 28 . 94 Cannon 228 | . 43 22 123 . . 14 12 . . . . . . 14 Launcher 47 | . . . 1 2 . 11 5 . 2 2 . . . 24 Special . | . . . . . . . . . . . . . . . Kinetic 110 | 52 29 . 29 . . . . . . . . . . . Thermal 844 | . 43 22 153 . . 12 104 165 112 133 . 28 . 72 Explosive 47 | . . . 1 2 . 11 5 . 2 2 . . . 24 Electromagnetic 2 | . . . . . . 2 . . . . . . . . Phasic 36 | . . . . . . . . . . . . . . 36 Robot Hit Streak 54 | 8 5 13 26 . . 7 31 31 27 54 . 35 . 32 Robot Miss Streak 5 | 3 3 3 4 . . 1 3 3 3 4 . 1 . 5 Penetration Max . | . . . . . . . . . . . . . . . Secondary Targets 9 | . . . 1 . . . . 3 . 4 . . . 1 Max Gunslinging Chain 1 | . . . 1 . . . . 1 . 1 . . . 1 Shots Hit Robots 759 | 30 34 17 126 . . 11 76 120 99 122 . 25 . 99 Core Hits 655 | 10 16 6 52 5 . 17 41 37 96 131 . 38 . 206 Critical Kills 3 | . . . 2 . . . . . . . . . . 1 Critical Parts Destroyed 3 | 2 . . 1 . . . . . . . . . . . Critical Strikes 27 | 2 . . 7 . . . 3 9 3 . . . . 3 Burn 19 | . . . 4 . . . 3 9 3 . . . . . Meltdown 3 | . . . 2 . . . . . . . . . . 1 Destroy 2 | 2 . . . . . . . . . . . . . . Smash 1 | . . . 1 . . . . . . . . . . . Intensify 2 | . . . . . . . . . . . . . . 2 Melee Attacks 51 | . 5 . 27 1 . 4 1 11 1 1 . . . . Impact 37 | . 5 . 27 1 . 4 . . . . . . . . Slashing 14 | . . . . . . . 1 11 1 1 . . . . Piercing . | . . . . . . . . . . . . . . . Sneak Attacks 1 | . . . 1 . . . . . . . . . . . Combat Hostiles . | . . . . . . . . . . . . . . . Follow-up Attacks . | . . . . . . . . . . . . . . . Damage Inflicted 25115 | 266 543 294 2659 156 . 1048 2296 2420 2716 3900 . 706 . 8111 Guns 14073 | 266 106 . 676 . . . 1372 2420 2560 3688 . 706 . 2279 Cannons 3284 | . 437 294 1766 . . 227 211 . . . . . . 349 Explosions 7588 | . . . 114 156 . 769 703 . 156 212 . . . 5478 Melee 103 | . . . 103 . . . . . . . . . . . Ramming 67 | . . . . . . 52 10 . . . . . . 5 Kinetic 708 | 266 106 . 336 . . . . . . . . . . . Thermal 15799 | . 437 294 2106 . . 227 1583 2420 2634 3688 . 706 . 1704 Explosive 7302 | . . . 114 156 . 769 703 . 82 . . . . 5478 Electromagnetic 212 | . . . . . . . . . . 212 . . . . Impact 103 | . . . 103 . . . . . . . . . . . Slashing . | . . . . . . . . . . . . . . . Piercing . | . . . . . . . . . . . . . . . Phasic 924 | . . . . . . . . . . . . . . 924 Highest Corruption 5 | . . . . . . 5 5 5 1 5 5 5 5 3 Average Corruption 4 | . . . . . . 4 4 5 1 4 5 5 5 3 Corruption Purged . | . . . . . . . . . . . . . . . Corruption Blocked . | . . . . . . . . . . . . . . . Effects 158 | . . . . . . 11 18 54 1 38 7 24 5 . Message Errors 41 | . . . . . . 1 5 16 . 9 4 6 . . Matter Fused 48 | . . . . . . 4 4 19 . 13 1 6 1 . Heat Flow Errors 14 | . . . . . . 2 . 4 1 3 . 4 . . Energy Discharges 18 | . . . . . . 1 4 1 . 4 1 5 2 . Parts Rejected 1 | . . . . . . . . 1 . . . . . . Parts Fused 2 | . . . . . . . . 2 . . . . . . Data Loss (minor) 17 | . . . . . . . 3 4 . 5 1 3 1 . Data Loss (major) 7 | . . . . . . 2 . 3 . 2 . . . . Misfires 6 | . . . . . . . 2 3 . 1 . . . . Alerts 2 | . . . . . . 1 . . . . . . 1 . Weapon Failures 2 | . . . . . . . . 1 . 1 . . . . Overload Shots . | . . . . . . . . . . . . . . . Overflow Damage 465 | . 12 8 129 . . 11 10 . 24 3 . . . 268 Projectiles 92 | . 12 8 26 . . 1 . . . . . . . 45 Explosions 270 | . . . . . . 10 10 . 24 3 . . . 223 Melee 103 | . . . 103 . . . . . . . . . . . Knockbacks . | . . . . . . . . . . . . . . . Impact . | . . . . . . . . . . . . . . . Kinetic . | . . . . . . . . . . . . . . . Secondary . | . . . . . . . . . . . . . . . Self-Inflicted Damage 433 | . . . 31 11 . 82 5 . . 87 . . . 217 Shots 11 | . . . 1 1 . 2 . . . 3 . . . 4 Rammed 4 | . . . . . . 1 1 . . . . . . 2 Targets Rammed 4 | . . . . . . 1 1 . . . . . . 2 Kicked . | . . . . . . . . . . . . . . . Crushed . | . . . . . . . . . . . . . . . Highest Temperature 444 | . 203 444 228 . . 249 307 234 196 259 . 235 . 392 Average Temperature 77 | . 68 173 48 . . 91 58 42 17 83 . 97 . 109 Received Heat Transfer 3230 | . 6 99 477 57 . 279 225 387 339 231 . 36 . 1094 Effects 6 | . 2 . . . . . . . . . . . . 4 Interference 6 | . 2 . . . . . . . . . . . . 4 Siege Activations . | . . . . . . . . . . . . . . . Martial Activations . | . . . . . . . . . . . . . . . Shielding Activations . | . . . . . . . . . . . . . . . Robots Disrupted . | . . . . . . . . . . . . . . . Combat Hostiles . | . . . . . . . . . . . . . . . Robots Corrupted 1 | . . . . . . . . . . 1 . . . . Combat Hostiles . | . . . . . . . . . . . . . . . Parts Fried 7 | . . . 2 . . . . . . 5 . . . . Impact Corruptions 1 | . . . 1 . . . . . . . . . . . Robots Melted 5 | . . . 2 . . . 1 1 . . . . . 1 Combat Hostiles 5 | . . . 2 . . . 1 1 . . . . . 1 Parts Melted 66 | . 1 4 13 . . . 2 15 8 19 . 1 . 3 Heat Transferred 30016 | . 925 629 4218 . . 407 3071 5143 4423 7940 . 1185 . 2075 Parts Sabotaged . | . . . . . . . . . . . . . . . Parts Stolen . | . . . . . . . . . . . . . . . Parts Stripped . | . . . . . . . . . . . . . . . Power Chain Reactions . | . . . . . . . . . . . . . . . Latent Energy Used 301 | . . . . . . 301 . . . . . . . . LE Corruption 5 | . . . . . . 5 . . . . . . . . Alert | -11 -10 -10 -9 -9 -9 -8 -8 -8 -7 -6 -6 -6 -6 -6 ------- Run | Yrd Mat Min Mat Min Exi Min Mat Sto Fac Fac Low Low Zio Dee Maximum Alert Level 1 | . . . 1 . . . 1 . 1 1 . . . . Low Security (%) 88 | 100 100 100 74 100 . 100 60 100 86 93 . . . . Level 1 11 | . . . 25 . . . 39 . 13 6 . . . . Level 2 . | . . . . . . . . . . . . . . . Level 3 . | . . . . . . . . . . . . . . . Level 4 . | . . . . . . . . . . . . . . . Level 5 . | . . . . . . . . . . . . . . . High Security . | . . . . . . . . . . . . . . . Max Security . | . . . . . . . . . . . . . . . Peak Influence 305 | 10 91 30 283 185 . 158 305 194 273 277 . . . . Initial 109 | . . . . 105 . . 17 109 67 109 . . . . Average 72 | 1 21 1 125 27 . 46 161 64 71 66 . . . . Influence Increases 4660 | 25 343 70 905 81 . 311 760 650 683 787 . 45 . . Destroy 0b10 Robot/C 2680 | . 160 60 520 60 . 200 460 320 420 440 . 40 . . Destroy 0b10 Robot/NC 330 | 25 25 . 90 . . 5 55 50 20 55 . 5 . . Destroy Leader 760 | . 36 10 168 10 . 30 104 124 136 142 . . . . Successful Hack 152 | . 27 . 34 . . . 5 10 44 32 . . . . Select Force Hacks 60 | . 30 . . . . . . 30 . . . . . . Disable Machine 270 | . 30 . . . . 15 30 75 30 90 . . . . Destroy Structure 198 | . 5 . 33 11 . 61 46 11 18 13 . . . . Partial Spotted 15 | . . . . . . . . 15 . . . . . . Lose Combat Pursuer 195 | . 30 . 60 . . . 60 15 15 15 . . . . Influence Decreases 4660 | 25 343 70 634 352 . 266 545 761 607 747 265 45 . . Entered New Map 642 | . . . . 166 . . 28 151 82 116 99 . . . Time Decay 3789 | 25 343 70 634 186 . 256 517 610 375 562 166 45 . . Lost Part 30 | . . . . . . 10 . . . 20 . . . . Purge Threat 199 | . . . . . . . . . 150 49 . . . . Squads Dispatched 33 | . 2 . 2 . . . 3 4 11 11 . . . . Investigation 5 | . 1 . 1 . . . . 2 . 1 . . . . Extermination 8 | . . . . . . . . . 3 5 . . . . Reinforcement 16 | . 1 . 1 . . . 3 2 4 5 . . . . Assault . | . . . . . . . . . . . . . . . Garrison 4 | . . . . . . . . . 4 . . . . . Intercept . | . . . . . . . . . . . . . . . Searches Triggered . | . . . . . . . . . . . . . . . Construction Impeded . | . . . . . . . . . . . . . . . Haulers Reinforced 4 | . . . . . . . . . 2 2 . . . . Active Scanning Responses . | . . . . . . . . . . . . . . . Cargo Convoy Interrupts . | . . . . . . . . . . . . . . . Stealth | -11 -10 -10 -9 -9 -9 -8 -8 -8 -7 -6 -6 -6 -6 -6 --------- Run | Yrd Mat Min Mat Min Exi Min Mat Sto Fac Fac Low Low Zio Dee Distress Signals 14 | . 2 . 4 . . . 7 1 . . . . . . Communications Jammed . | . . . . . . . . . . . . . . . Distress Signals . | . . . . . . . . . . . . . . . Times Spotted 292 | . 20 3 48 3 . 9 37 22 27 35 . 6 . 82 Peak Tracking Total 27 | . 4 2 6 3 . 4 9 4 6 4 . 4 . 27 Tactical Retreats 11 | . 1 . 4 . . . 2 1 1 1 . . . 1 Traps | -11 -10 -10 -9 -9 -9 -8 -8 -8 -7 -6 -6 -6 -6 -6 ------- Run | Yrd Mat Min Mat Min Exi Min Mat Sto Fac Fac Low Low Zio Dee Traps Triggered 7 | . . . . . . . 3 1 2 1 . . . . Indirectly . | . . . . . . . . . . . . . . . Trap Hack Attempts . | . . . . . . . . . . . . . . . Triggered . | . . . . . . . . . . . . . . . Disarmed 6 | . 6 . . . . . . . . . . . . . Reprogrammed 6 | . . . . . . . . 6 . . . . . . Reused . | . . . . . . . . . . . . . . . Traps Extracted . | . . . . . . . . . . . . . . . Installed . | . . . . . . . . . . . . . . . Triggered . | . . . . . . . . . . . . . . . Machines | -11 -10 -10 -9 -9 -9 -8 -8 -8 -7 -6 -6 -6 -6 -6 ---------- Run | Yrd Mat Min Mat Min Exi Min Mat Sto Fac Fac Low Low Zio Dee Machines Disabled 21 | . 2 1 . . . 1 2 5 2 6 . . . 2 Max in Single Turn 6 | . 1 1 . . . 1 1 1 1 6 . . . 1 Garrison Access 4 | . . . . . . . 1 1 . 2 . . . . Machines Repaired . | . . . . . . . . . . . . . . . Machines Dismantled . | . . . . . . . . . . . . . . . Machines Sabotaged . | . . . . . . . . . . . . . . . Overloaded Fab Kills . | . . . . . . . . . . . . . . . Hacking | -11 -10 -10 -9 -9 -9 -8 -8 -8 -7 -6 -6 -6 -6 -6 --------- Run | Yrd Mat Min Mat Min Exi Min Mat Sto Fac Fac Low Low Zio Dee Machines Accessed 68 | . 10 1 14 . 2 1 7 13 8 10 1 1 . . Terminals 43 | . 8 1 11 . . 1 2 9 5 6 . . . . Fabricators . | . . . . . . . . . . . . . . . Repair Stations 9 | . 1 . 2 . . . 2 2 1 1 . . . . Recycling Units 2 | . 1 . . . . . . 1 . . . . . . Scanalyzers 5 | . . . 1 . . . 2 . 1 1 . . . . Garrison Access 5 | . . . . . . . 1 1 1 2 . . . . Total Hacks 197 | . 35 1 43 . 6 3 21 38 18 30 1 1 . . Successful 125 | . 24 1 28 . 6 2 15 26 6 15 1 1 . . Failed 70 | . 10 . 14 . . 1 6 12 12 15 . . . . Catastrophic 7 | . 1 . . . . 1 . . 3 2 . . . . Database Lockouts 2 | . 1 . 1 . . . . . . . . . . . Manual 76 | . 20 1 32 . 1 1 8 8 . 1 . . 4 . Terminals 137 | . 32 1 30 . . 3 8 30 13 20 . . . . Fabricators . | . . . . . . . . . . . . . . . Repair Stations 27 | . 2 . 11 . . . 5 5 2 2 . . . . Recycling Units 3 | . 1 . . . . . . 2 . . . . . . Scanalyzers 15 | . . . 2 . . . 7 . 1 5 . . . . Garrison Access 7 | . . . . . . . 1 1 2 3 . . . . Terminal Hacks 48 | . 9 . 1 . 6 2 . 16 4 8 1 1 . . Record 11 | . . . 1 . 5 2 . 1 . 1 1 . . . Robot Analysis 1 | . 1 . . . . . . . . . . . . . Prototype ID Bank 6 | . 1 . . . . . . 4 . 1 . . . . Open Door 4 | . . . . . . . . 3 . . . 1 . . Open DSF 1 | . . . . . . . . . 1 . . . . . Level Access Points 1 | . 1 . . . . . . . . . . . . . Branch Access Points 1 | . . . . . . . . . . 1 . . . . Emergency Access Points 1 | . . . . . . . . 1 . . . . . . Repair Station Index 1 | . . . . . . . . . . 1 . . . . Alert Level 1 | . . . . . . . . 1 . . . . . . Unreport Threat 2 | . . . . . . . . . 1 1 . . . . Locate Traps 7 | . 2 . . . . . . 3 1 1 . . . . Disarm Traps 1 | . 1 . . . . . . . . . . . . . Reprogram Traps 1 | . . . . . . . . 1 . . . . . . Maintenance Status 2 | . 1 . . . . . . . 1 . . . . . Surveillance Status 1 | . . . . . . . . . . 1 . . . . Transport Status 1 | . . . . . . . . 1 . . . . . . Hauler Manifests 3 | . 1 . . . . . . 1 . 1 . . . . Registered Components 1 | . 1 . . . . . . . . . . . . . Proto ID Catalog 1 | . . . . . 1 . . . . . . . . . Fabricator Hacks . | . . . . . . . . . . . . . . . Repair Station Hacks 24 | . 2 . 10 . . . 4 5 2 1 . . . . Scan Component 13 | . 1 . 5 . . . 2 3 1 1 . . . . Repair 11 | . 1 . 5 . . . 2 2 1 . . . . . Recycling Unit Hacks . | . . . . . . . . . . . . . . . Scanalyzer 10 | . . . 1 . . . 6 . . 3 . . . . Retrieve Study 10 | . . . 1 . . . 6 . . 3 . . . . Garrison Access Hacks 4 | . . . . . . . 1 1 . 2 . . . . Seal Access 4 | . . . . . . . 1 1 . 2 . . . . Unauthorized Hacks 39 | . 13 1 16 . . . 4 4 . 1 . . . . Terminals 37 | . 12 1 16 . . . 4 3 . 1 . . . . Track 1 | . . 1 . . . . . . . . . . . . Assimilate 1 | . 1 . . . . . . . . . . . . . Botnet 18 | . 6 . 6 . . . 2 3 . 1 . . . . Skim 17 | . 5 . 10 . . . 2 . . . . . . . Fabricators . | . . . . . . . . . . . . . . . Repair Stations . | . . . . . . . . . . . . . . . Recycling Units 2 | . 1 . . . . . . 1 . . . . . . Tunnel 2 | . 1 . . . . . . 1 . . . . . . Scanalyzers . | . . . . . . . . . . . . . . . Garrison Access . | . . . . . . . . . . . . . . . Data Cores Recovered 3 | . . . 1 . . . 1 . . 1 . . . . Used 1 | . . . . . . . . . . 1 . . . . Hacking Detections 50 | . 8 . 11 . . 1 6 10 7 7 . . . . Full Trace Events 4 | . . . 1 . . . . 2 . 1 . . . . Feedback Events . | . . . . . . . . . . . . . . . Feedback Blocked . | . . . . . . . . . . . . . . . Robot Schematics Acquired . | . . . . . . . . . . . . . . . Robots Built . | . . . . . . . . . . . . . . . Authchips . | . . . . . . . . . . . . . . . Time . | . . . . . . . . . . . . . . . Total Robot Build Rating . | . . . . . . . . . . . . . . . Part Schematics Acquired . | . . . . . . . . . . . . . . . Parts Built . | . . . . . . . . . . . . . . . Authchips . | . . . . . . . . . . . . . . . Time . | . . . . . . . . . . . . . . . Total Part Build Rating . | . . . . . . . . . . . . . . . Part Studies Acquired 10 | . . . 1 . . . 6 . . 3 . . . . Parts Repaired 11 | . 1 . 5 . . . 2 2 1 . . . . . Time 448 | . 26 . 236 . . . 64 92 30 . . . . . Parts Recycled . | . . . . . . . . . . . . . . . Recycled Matter . | . . . . . . . . . . . . . . . Retrieved Matter . | . . . . . . . . . . . . . . . Retrieved Components . | . . . . . . . . . . . . . . . Parts Scanalyzed . | . . . . . . . . . . . . . . . Part Schematics Acquired . | . . . . . . . . . . . . . . . Parts Damaged . | . . . . . . . . . . . . . . . Bothacking | -11 -10 -10 -9 -9 -9 -8 -8 -8 -7 -6 -6 -6 -6 -6 ------------ Run | Yrd Mat Min Mat Min Exi Min Mat Sto Fac Fac Low Low Zio Dee Used RIF Installer . | . . . . . . . . . . . . . . . Robots Hacked . | . . . . . . . . . . . . . . . Non-combat . | . . . . . . . . . . . . . . . Combat . | . . . . . . . . . . . . . . . Robot Hacks Applied . | . . . . . . . . . . . . . . . Relay Couplers Released . | . . . . . . . . . . . . . . . Fabnet Peak Effective % . | . . . . . . . . . . . . . . . Robots Rewired . | . . . . . . . . . . . . . . . Allies Hacked . | . . . . . . . . . . . . . . . Hacks Repelled . | . . . . . . . . . . . . . . . Allies | -11 -10 -10 -9 -9 -9 -8 -8 -8 -7 -6 -6 -6 -6 -6 -------- Run | Yrd Mat Min Mat Min Exi Min Mat Sto Fac Fac Low Low Zio Dee Total Allies 7 | . . . . . . . . . . . . . 7 . Largest Group 7 | . . . . . . . . . . . . . 7 7 Highest-Rated Group 174 | . . . . . . . . . . . . . 174 174 Highest-Rated Ally 31 | . . . . . . . . . . . . . 31 31 Total Orders . | . . . . . . . . . . . . . . . Ally Attacks 41 | . . . . . . . . . . . . . . 41 Total Damage 513 | . . . . . . . . . . . . . . 513 Kills 6 | . . . . . . . . . . . . . . 6 Allies Corrupted . | . . . . . . . . . . . . . . . Allies Melted . | . . . . . . . . . . . . . . . Intel | -11 -10 -10 -9 -9 -9 -8 -8 -8 -7 -6 -6 -6 -6 -6 ------- Run | Yrd Mat Min Mat Min Exi Min Mat Sto Fac Fac Low Low Zio Dee Active Infowar (turns) 8060 | 49 1963 984 547 759 354 29 . . . 975 357 849 941 253 Optics 3375 | . . . . . . . . . . 975 357 849 941 253 Sensors 1615 | . . 36 87 759 354 29 . . . . 350 . . . Seismic 3420 | 49 1963 948 460 . . . . . . . . . . . Robot Analysis Total 1 | . 1 . . . . . . . . . . . . . Derelict Logs Recovered 9 | . . 2 . 1 . . . . . . 2 3 1 . Drone Launches . | . . . . . . . . . . . . . . . Drone Recoveries . | . . . . . . . . . . . . . . . Exploration | -11 -10 -10 -9 -9 -9 -8 -8 -8 -7 -6 -6 -6 -6 -6 ------------- Run | Yrd Mat Min Mat Min Exi Min Mat Sto Fac Fac Low Low Zio Dee Turns Passed 23451 | 163 2022 2114 2729 1282 354 1320 2766 2276 1949 2869 357 849 941 1460 Spaces Moved 12127 | 86 792 790 1406 599 243 719 1213 968 1156 1338 361 718 813 925 Core 3 | 3 . . . . . . . . . . . . . . Treads 1422 | . . 727 29 276 . . 113 230 . . . . . 47 Legs . | . . . . . . . . . . . . . . . Wheels 10702 | 83 792 63 1377 323 243 719 1100 738 1156 1338 361 718 813 878 Hover . | . . . . . . . . . . . . . . . Flight . | . . . . . . . . . . . . . . . Fastest Speed 50 | 50 80 95 95 113 113 113 105 105 101 98 98 98 98 98 Average Speed 118 | 83 93 154 114 171 113 116 120 142 110 103 98 98 111 118 Slowest Speed 250 | 90 110 160 240 240 113 128 240 225 140 113 98 98 113 250 Overloaded Moves . | . . . . . . . . . . . . . . . Propulsion Burnouts . | . . . . . . . . . . . . . . . Robots Hopped . | . . . . . . . . . . . . . . . Potential Cave-ins . | . . . . . . . . . . . . . . . Cave-ins Triggered . | . . . . . . . . . . . . . . . Exploration Rate (%) 71 | 5 100 98 98 97 61 97 69 84 26 34 53 71 86 91 Regions Visited 14 Branch Regions 9 Pre-discovered Areas 6 | . 1 1 1 . 1 . . 1 . . . . 1 . Known Exits Taken 10 | . 1 1 1 . . 1 1 1 1 1 1 1 . . Unknown Exits Taken 4 | 1 . . . 1 1 . . . . . . . 1 . Scrap Searched 10 | . . 1 . 1 . . . . . . . 5 3 . Spaces Dug 143 | . 3 . 26 13 . 38 31 8 . 18 . . . 6 Terrain Destroyed 271 | . 3 . 26 20 . 113 50 8 16 18 . . . 17 Melee 36 | . 3 . 18 1 . 4 1 8 . 1 . . . . Projectile 9 | . . . . . . . . . . . . . . 9 AOE 226 | . . . 8 19 . 109 49 . 16 17 . . . 8 Terrain Rammed . | . . . . . . . . . . . . . . . Walls Destroyed . | . . . . . . . . . . . . . . . Machines Disabled . | . . . . . . . . . . . . . . . Actions | -11 -10 -10 -9 -9 -9 -8 -8 -8 -7 -6 -6 -6 -6 -6 --------- Run | Yrd Mat Min Mat Min Exi Min Mat Sto Fac Fac Low Low Zio Dee Total 20014 | 132 1998 1656 2264 845 323 1163 2402 1683 1705 2665 363 833 844 1138 Wait 6501 | 4 1124 819 523 235 79 396 1021 527 408 1178 . 100 21 66 Move 12113 | 85 791 789 1405 598 242 718 1212 967 1155 1337 360 717 812 925 Hop . | . . . . . . . . . . . . . . . Pick Up 153 | 8 11 6 47 1 1 1 28 9 15 19 . 1 2 4 Fast Attach 89 | 7 4 1 13 . . . 8 19 9 9 . . 3 16 Attach 35 | . . 1 3 . . 3 4 2 4 7 . . . 11 Detach 16 | . 1 1 2 . . 3 . 2 2 2 . . . 3 Swap 276 | 1 15 17 98 8 . 15 41 30 18 19 2 . 1 11 Drop 204 | 1 11 8 50 . 1 4 29 26 27 24 . 1 5 17 Fire 555 | 26 36 14 96 2 . 18 57 82 58 69 . 14 . 83 Melee 51 | . 5 . 27 1 . 4 1 11 1 1 . . . . Ram 2 | . . . . . . 1 1 . . . . . . . Kick . | . . . . . . . . . . . . . . . Crush 2 | . . . . . . . . . . . . . . 2 Escape Stasis 16 | . . . . . . . . 8 8 . . . . . Rewire 1 | . . . . . . . . . . . 1 . . . Trap . | . . . . . . . . . . . . . . . Miscellaneous . | . . . . . . . . . . . . . . . Route ------- -11/Scrapyard -10/Materials (discovered 5 exits: *Mat x3 / *Min / *Sub) -10/Mines (discovered 3 exits: *Mat x2 / *Sub) -9/Materials (discovered 5 exits: *Mat x3 / *Min x2) -9/Mines (discovered 3 exits: *Mat x2 / *Exi) -9/Exiles (discovered 2 exits: *Min x2) -8/Mines (discovered 2 exits: *Mat x2) -8/Materials (discovered 4 exits: *Fac x2 / *Sto x2) -8/Storage (discovered 2 exits: *Fac / Rec) -7/Factory (discovered 2 exits: *Fac / *Low) -6/Factory (discovered 4 exits: *Low x2 / Ext x2) -6/Lower Caves -6/Lower Caves (discovered 2 exits: *Fac / *Zio) -6/Zion (discovered 2 exits: [*Dee] / [*Pro]) -6/Deep Caves (discovered 1 exit: [*Pro]) History --------- Turn | Location | Event 53 | -11/Scrapyard | Discovered new exit (range 15) 164 | -11/Scrapyard | Entered Materials 208 | -10/Materials | Identified exit to Materials 314 | -10/Materials | Build established: Mutant 594 | -10/Materials | Discovered new exit (range 8) 595 | -10/Materials | Identified exit to Mines 595 | -10/Materials | Learned location of 1 exit from Materials 644 | -10/Materials | Identified exit to Subcaves 733 | -10/Materials | Learned 2 Materials zone layouts 741 | -10/Materials | Loaded intel: 22 trap records 761 | -10/Materials | Learned 2 Mines zone layouts 793 | -10/Materials | Learned location of 1 exit from Storage 1064 | -10/Materials | Derelicts attacked the area 1148 | -10/Materials | Repaired Lgt. Treads 1252 | -10/Materials | Central database locked down 2186 | -10/Materials | Entered Mines 2187 | -10/Mines | Assembled infested the area 2192 | -10/Mines | Assisted by a Guerilla fighting off Assembled 3121 | -10/Mines | Discovered exit to Materials (range 12) 3186 | -10/Mines | Found a damaged Exp. Sensor Array with a note attached 3192 | -10/Mines | Found Prototype Device 3193 | -10/Mines | Identified Exp. Sensor Array 3250 | -10/Mines | Discovered exit to Materials (range 10) 3531 | -10/Mines | Learned location of Zion (-6) 4300 | -10/Mines | Entered Materials 4300 | -9/Materials | Evolved 2 slots: Propulsion x1, Utility x1 4301 | -9/Materials | Identified exit to Materials 4619 | -9/Materials | Build established: Scavenger-Mutant 4733 | -9/Materials | Discovered exit to Materials (range 4) 5364 | -9/Materials | Build established: Mutant 5506 | -9/Materials | Repaired Arm. Wheel 5615 | -9/Materials | Repaired Exp. Sensor Array 5690 | -9/Materials | Identified exit to Mines 5774 | -9/Materials | Loaded intel: 16 trap records 5899 | -9/Materials | Central database locked down 6154 | -9/Materials | Core integrity fell below 50% 6714 | -9/Materials | Discovered exit to Mines (range 15) 6769 | -9/Materials | Repaired Arm. Wheel 6802 | -9/Materials | Repaired Imp. Ion Engine 7010 | -9/Materials | Repaired Arm. Wheel 7029 | -9/Materials | Entered Mines 7300 | -9/Mines | Build established: Scavenger-Mutant 7511 | -9/Mines | Received a Rocket Launcher from a helpful Derelict 8039 | -9/Mines | Deemed a non-threat by the Exiles lab entrance 8039 | -9/Mines | Discovered new exit (range 5) 8146 | -9/Mines | Learned 2 Materials zone layouts 8165 | -9/Mines | Build established: Mutant 8311 | -9/Mines | Entered Exiles 8337 | -9/Exiles | Met 8R-AWN 8343 | -9/Exiles | Discovered new exit (range 14) 8384 | -9/Exiles | Met EX-HEX 8415 | -9/Exiles | Met EX-BIN 8431 | -9/Exiles | Aligned with FarCom system 8432 | -9/Exiles | Given EX-Vault access code 8458 | -9/Exiles | Opened EX-Vault 8467 | -9/Exiles | Found Latent Energy Streamer 8488 | -9/Exiles | Warned to stay clear of 0b10 Research branches 8506 | -9/Exiles | Exiles lab attacked by MAIN.C 8564 | -9/Exiles | Discovered new exit (range 12) 8665 | -9/Exiles | Left Exiles lab with Latent Energy Streamer 8665 | -9/Exiles | Entered Mines 9535 | -8/Mines | Core integrity fell below 20% 9981 | -8/Mines | Discovered exit to Materials (range 16) 9985 | -8/Mines | Entered Materials 9985 | -8/Materials | Evolved 2 slots: Propulsion x1, Utility x1 9986 | -8/Materials | Identified exit to Storage 10422 | -8/Materials | Discovered new exit (range 8) 10469 | -8/Materials | Build established: Scavenger-Mutant 10657 | -8/Materials | Destroyed 7 combat bots 10702 | -8/Materials | Repaired Imp. Ion Engine 10930 | -8/Materials | Build established: Mutant 12233 | -8/Materials | Repaired Arm. Wheel+ 12448 | -8/Materials | Discovered new exit (range 11) 12751 | -8/Materials | Entered Storage 12752 | -8/Storage | Identified exit to Recycling 12753 | -8/Storage | Identified exit to Factory 13653 | -8/Storage | Repaired Arm. Wheel+ 14480 | -8/Storage | Repaired Adv. Beam Rifle 15027 | -8/Storage | Entered Factory 15027 | -7/Factory | Evolved 2 slots: Utility x2 15354 | -7/Factory | Repaired Adv. Beam Rifle 15434 | -7/Factory | Discovered new exit (range 5) 15476 | -7/Factory | Identified exit to Lower Caves 16262 | -7/Factory | Garrison activated, responded to threat 16561 | -7/Factory | Allied Derelicts emerged from ambush trap array 16662 | -7/Factory | Garrison activated, responded to threat 16769 | -7/Factory | Discovered new exit (range 16) 16975 | -7/Factory | Identified exit to Factory 16976 | -7/Factory | Entered another Factory area 16976 | -6/Factory | Evolved 2 slots: Propulsion x2 18057 | -6/Factory | Build established: Scientist-Mutant 18286 | -6/Factory | Identified exit to Lower Caves 18286 | -6/Factory | Identified exit to Extension 19060 | -6/Factory | Found Prototype Processor 19061 | -6/Factory | Identified Exp. Targeting Computer 19845 | -6/Factory | Entered Lower Caves 19914 | -6/Lower Caves | Entered a destroyed Warlord outpost 19967 | -6/Lower Caves | Build established: Mutant 19968 | -6/Lower Caves | Learned location of 1 exit from Factory 19970 | -6/Lower Caves | Learned location of 1 exit from Proximity Caves 20186 | -6/Lower Caves | Discovered new exit (range 17) 20202 | -6/Lower Caves | Identified exit to Lower Caves 20202 | -6/Lower Caves | Entered another Lower Caves area 20229 | -6/Lower Caves | Discovered new exit (range 12) 20238 | -6/Lower Caves | Identified exit to Factory 20294 | -6/Lower Caves | Learned Factory security intel 20660 | -6/Lower Caves | Identified exit to Zion 20662 | -6/Lower Caves | Learned Factory garrison access intel 21051 | -6/Lower Caves | Entered Zion 21089 | -6/Zion | Found CR-A16's Pointy Stick 21110 | -6/Zion | Given the Hacking Drone Bay 21110 | -6/Zion | Found Prototype Device 21110 | -6/Zion | Identified Hacking Drone Bay 21118 | -6/Zion | Discovered new exit (range 10) 21206 | -6/Zion | System corruption cleaned by Quarantine Array 21392 | -6/Zion | Found Prototype Device 21392 | -6/Zion | Identified Phasing AFG 21501 | -6/Zion | Gained Derelict followers 21523 | -6/Zion | Received a hallucinogenic algorithm 21552 | -6/Zion | Learned 4 Factory zone layouts 21604 | -6/Zion | Given A8's code to call for help 21665 | -6/Zion | Acquired unknown access codes intercepted by a Zionite 21770 | -6/Zion | Gained Derelict followers 21838 | -6/Zion | Rebuked by Imprinter 21940 | -6/Zion | Opened final containment barrier to the Deep Caves 21962 | -6/Zion | Discovered new exit (range 3) 21962 | -6/Zion | Saw the warning signs outside the Deep Caves entrance 21992 | -6/Zion | Entered Deep Caves 21992 | -6/Deep Caves | Accompanied by 7 allies 22221 | -6/Deep Caves | Attacked by Z-Imprinter 22272 | -6/Deep Caves | Lost 3 allies 22278 | -6/Deep Caves | Destroyed Z-Imprinter 22383 | -6/Deep Caves | Z-Facility disabled 22433 | -6/Deep Caves | Lost 3 allies 22480 | -6/Deep Caves | Found Prototype Protection 22480 | -6/Deep Caves | Identified Zio. Weapon Casing 22520 | -6/Deep Caves | Found Prototype Protection 22520 | -6/Deep Caves | Identified Zio. Heavy Carapace 22527 | -6/Deep Caves | Found Zio. Heavy Carapace 23040 | -6/Deep Caves | Build established: Scientist-Mutant 23045 | -6/Deep Caves | Discovered new exit (range 6) 23171 | -6/Deep Caves | Spotted AG-03719 23188 | -6/Deep Caves | Spotted AG-76695 23229 | -6/Deep Caves | Lost 3 parts (1p1n1u) 23237 | -6/Deep Caves | Core integrity fell below 50% 23274 | -6/Deep Caves | Destroyed AG-76695 23300 | -6/Deep Caves | Lost 5 parts (3n2w) 23359 | -6/Deep Caves | Triggered Deep Caves wall 23368 | -6/Deep Caves | Exposed GOLEM chamber 23374 | -6/Deep Caves | Core integrity fell below 20% 23374 | -6/Deep Caves | Spotted AS-12621 23452 | -6/Deep Caves | Destroyed 46 combat bots 23452 | -6/Deep Caves | Destroyed by as-53271 with Assembled P-torch Last Messages --------------- 23412_ as-83121 released from Mobile Assembly Unit. 23413_ Adv. Targeting Computer destroyed. 23413_ System corrupted by crushing effect (+3). 23415_ Destroyed Asb. Hover System. 23417_ as-75313 destroyed. 23422_ as-18180 released from Mobile Assembly Unit. 23422_ Destroyed Asb. Hover System. 23424_ as-83121 destroyed. 23431_ as-10886 destroyed. 23432_ Critical hit (Burn: +80). 23433_ Missile Launcher+ destroyed. 23439_ Phase Cannon destroyed. 23440_ Slammed into as-18180. 23449_ Arm. Treads+ destroyed. 23452_ as-72592 released from Mobile Assembly Unit. 23452_ as-30531 released from Mobile Assembly Unit. Map ----- +----------------------------------------------------+ | ?????????" ???????# # | | ?????????" ???????# # | | ?????????" ???????# # | | ?????????" #?###???# # | | ?????????" #?# #???# # | | ????????# ### ##### # | | ????????# # # # | | ????????# ! ##### # | | ????????# ! ###### # | | ????????# ! #??# # | | ????????# ###??# | | ???????? ! ! ! ##???#### | | ???????? a #??????? | | ???????? G / #???##?? | | ???????? a * #??? #?# | | ??????### a #??#"### | | ??????#G A * #?## | | ??????#GG b #?# | | ???????G G a #?# | | ???????GGG =* s* g ### | | ????????GG = = #" | | ????????# = ## | | ????????" #" | | ????????" """ | | ????????" aaa | | ????????"""@a | | ????????" h | | ????????"" M ####"# | | ????????" #???## | | ????????"" ##?# | | ????????" # # #??### | | ????????" #### ## ## ##????## | | ????????""" ###??# ## ####??????## | | ?????????" ????#### #??????????? | | ?????????######????????#???????????? | | | | | | | | | | | | | | | | | | | | | | | | | | | | | | | +----------------------------------------------------+ Best States ------------- Heat Dissipation 64 Energy Generation 18 Energy Capacity 310 Matter Stores 300 Matter Capacity 300 Sight Range 20 Robot Scan Range 20 Terrain Scan Density 10 Armor Coverage 1200 Evasion (%) 44 Targeting Accuracy 28 Recoil Reduction 6 Particle Charging 15 Offensive Hacking 10 Authchip Count 1 Item Schematics ----------------- None Robot Schematics ------------------ None Fabricated ------------ Nothing Repaired ---------- Lgt. Treads | 87% | -10/Materials Arm. Wheel | 66% | -9/Materials Exp. Sensor Array | 62% | -9/Materials Arm. Wheel | 69% | -9/Materials Imp. Ion Engine | 22% | -9/Materials Arm. Wheel | 61% | -9/Materials Imp. Ion Engine | 64% | -8/Materials Arm. Wheel | 59% | -8/Materials Arm. Wheel | 55% | -8/Storage Adv. Beam Rifle | 70% | -8/Storage Adv. Beam Rifle | 30% | -7/Factory Studied --------- Wheel | -9/Materials | Hacked Arm. Wheel | -8/Materials | Hacked Missile Launcher | -8/Materials | Hacked Lgt. Treads | -8/Materials | Hacked Arm. Treads | -8/Materials | Hacked Imp. Ion Engine | -8/Materials | Hacked Katana | -8/Materials | Hacked Gatling Laser | -6/Factory | Hacked Adv. Treads | -6/Factory | Hacked Arm. Huge Wheel | -6/Factory | Hacked Alien Tech Used ----------------- None Achievements -------------- Ooh, Shiny! Professional Mechanic Challenges ------------ None Game ------ Seed DroneTransmissionBuckler Manual? 0 Play Time 04:08:55 Cumulative 135.1 hours Start 2025.12.17 @ 10:36:16 End 2025.12.17 @ 19:13:02 Sessions 1 Manual Loads 0 Difficulty Rogue Special Mode None Game No. 104 Rogue 104 Adventurer 0 Explorer 0 Win Type - Total 2 Types 2/0/0/0/0/0/0/0/0/0 Lore% 45 Gallery% 47 Achievement% 40 Wizard Run 0 Options --------- Layout 2 ASCII 0 Keyboard 0 Movement Mouse Keybinds 0 Fullscreen 2 Font 24/Smallcaps Map View 50x44 Zoom Use 0% Tactical HUD 1 Map Filters NONE Filters NONE Steam 1 RUN: 15a36831-426d-4fc7-b797-b56417d0e9b3